bitfinex-derivatives/quotes_BTCF0:USTF0_20220103
["timestamp","ask_amount","ask_price","bid_price","bid_amount"]
[1641212784729,0.60384293,47386.0,47385.0,1.06823482]
[1641212785130,0.60384293,47386.0,47385.0,0.22977311]
[1641212785729,0.60384293,47386.0,47385.0,1.06821716]
[1641212785929,0.51284293,47386.0,47385.0,0.95921716]
[1641212786733,0.60084293,47386.0,47385.0,1.06921716]
[1641212787333,0.60084293,47386.0,47385.0,1.06821716]
[1641212787933,0.51284293,47386.0,47385.0,0.95821716]
[1641212788436,0.51284293,47386.0,47385.0,0.11977311]
[1641212788649,0.59884293,47386.0,47385.0,0.22977311]
[1641212789047,0.59884293,47386.0,47385.0,0.11]
[1641212789450,0.59884293,47386.0,47385.0,0.94945192]
[1641212789950,0.51284293,47386.0,47385.0,0.83945192]
[1641212790151,0.51284293,47386.0,47385.0,0.83845192]
[1641212790547,0.51284293,47386.0,47385.0,0.91145192]
[1641212790548,0.62684293,47386.0,47385.0,0.91145192]
[1641212790748,0.62684293,47386.0,47385.0,0.073]
[1641212792250,0.51284293,47386.0,47383.0,0.83845192]
[1641212792652,0.60484293,47386.0,47385.0,0.086]
[1641212794053,0.51284293,47386.0,47383.0,0.83845192]
[1641212794752,0.60384293,47386.0,47383.0,0.92245192]
[1641212795155,0.11284293,47385.0,47383.0,0.92245192]
[1641212796158,0.11284293,47384.0,47382.0,0.83845192]
[1641212796556,0.11284293,47384.0,47383.0,0.07]
[1641212796756,0.51284293,47384.0,47383.0,0.07]
[1641212797960,0.51284293,47384.0,47382.0,0.83845192]
[1641212798560,0.62384293,47384.0,47382.0,0.92145192]
[1641212799562,0.11284293,47383.0,47382.0,0.92145192]
[1641212799763,0.20530293,47383.0,47382.0,0.92145192]
[1641212799964,0.20530293,47383.0,47382.0,0.83845192]
[1641212800165,0.20530293,47383.0,47382.0,0.95823311]
[1641212800564,0.50030293,47383.0,47382.0,0.83845192]
[1641212800764,0.32030293,47383.0,47382.0,0.83845192]
[1641212800966,0.50030293,47383.0,47382.0,0.83845192]
[1641212801765,1.91097868,47383.0,47380.0,1.19780244]
[1641212801965,0.4,47381.0,47379.0,0.02110572]
[1641212802666,0.508,47381.0,47379.0,0.11410572]
[1641212803667,0.11284293,47380.0,47379.0,0.11410572]
[1641212804067,0.11284293,47380.0,47379.0,0.02110572]
[1641212804667,0.22684293,47380.0,47379.0,0.02110572]
[1641212805967,0.11284293,47380.0,47379.0,0.02110572]
[1641212806769,0.22684293,47380.0,47379.0,0.02110572]
[1641212808671,0.22784293,47380.0,47379.0,0.02110572]
[1641212810071,0.11284293,47380.0,47379.0,0.02110572]
[1641212810673,0.22784293,47380.0,47379.0,0.02110572]
[1641212812074,0.11284293,47380.0,47379.0,0.02110572]
[1641212812675,0.22784293,47380.0,47379.0,0.02110572]
[1641212813076,0.40784293,47380.0,47379.0,0.02110572]
[1641212814078,0.11284293,47380.0,47379.0,0.02110572]
[1641212814578,0.22484293,47380.0,47379.0,0.02110572]
[1641212814796,0.40484293,47380.0,47379.0,0.02110572]
[1641212816182,1.70351868,47380.0,47379.0,0.02110572]
[1641212816678,1.81451868,47380.0,47379.0,0.02110572]
[1641212816879,1.81451868,47380.0,47374.0,0.83845192]
[1641212817078,0.58,47375.0,47369.0,1.31322546]
[1641212817279,0.18,47375.0,47369.0,1.31322546]
[1641212817680,0.4,47370.0,47369.0,1.31322546]
[1641212817880,0.47191,47370.0,47369.0,1.31322546]
[1641212818080,0.47191,47370.0,47366.0,1.31322546]
[1641212818683,0.4,47367.0,47366.0,1.31322546]
[1641212819081,0.4,47367.0,47366.0,0.01298129]
[1641212820281,0.4,47367.0,47366.0,0.0340917]
[1641212820682,0.477,47367.0,47366.0,0.0340917]
[1641212821082,0.58984293,47367.0,47366.0,0.0340917]
[1641212821983,0.51284293,47367.0,47366.0,0.0340917]
[1641212822700,0.60484293,47367.0,47366.0,0.0340917]
[1641212823904,0.51284293,47367.0,47366.0,0.0340917]
[1641212824703,0.59784293,47367.0,47366.0,0.0340917]
[1641212824903,0.19784293,47367.0,47366.0,0.0340917]
[1641212825102,0.19784293,47367.0,47366.0,0.0350917]
[1641212825301,0.19784293,47367.0,47366.0,0.19298129]
[1641212825502,0.19784293,47367.0,47366.0,0.21509031]
[1641212825703,0.19784293,47367.0,47366.0,0.21409031]
[1641212825905,0.19784293,47367.0,47366.0,0.21408827]
[1641212826304,0.085,47367.0,47366.0,0.21508827]
[1641212826704,0.35067079,47368.0,47366.0,0.32908827]
[1641212826905,0.35067079,47368.0,47367.0,0.002]
[1641212827307,0.81823184,47371.0,47367.0,0.001]
[1641212827506,0.4,47382.0,47370.0,0.20210427]
[1641212827705,0.4,47379.0,47370.0,0.09613427]
[1641212827906,0.4,47379.0,47373.0,0.14033567]
[1641212828107,0.4,47379.0,47373.0,0.15012967]
[1641212828305,0.4,47383.0,47373.0,0.15012967]
[1641212828505,0.4,47379.0,47374.0,0.19198129]
[1641212828705,0.09,47379.0,47374.0,0.19198129]
[1641212829110,0.10217883,47378.0,47375.0,0.01198129]
[1641212829306,0.10217883,47378.0,47377.0,0.001]
[1641212829708,0.10217883,47378.0,47375.0,0.01198129]
[1641212830110,0.10217883,47378.0,47377.0,0.001]
[1641212830513,0.10217883,47378.0,47377.0,0.181]
[1641212830710,0.10217883,47378.0,47377.0,0.293]
[1641212830910,0.50217883,47378.0,47377.0,0.113]
[1641212831311,0.50217883,47378.0,47377.0,0.112]
[1641212831511,0.50217883,47378.0,47377.0,0.113]
[1641212831813,0.4,47378.0,47377.0,0.113]
[1641212832011,0.4,47379.0,47377.0,0.113]
[1641212832211,0.4,47379.0,47378.0,0.001]
[1641212832611,0.4,47379.0,47378.0,0.111]
[1641212833012,0.4,47379.0,47378.0,0.23078508]
[1641212833211,0.10217883,47382.0,47378.0,0.11]
[1641212833412,0.14033567,47384.0,47378.0,0.22978508]
[1641212834011,0.14033567,47384.0,47379.0,0.11978508]
[1641212834214,0.14033567,47384.0,47383.0,0.001]
[1641212834414,0.14033567,47384.0,47379.0,0.12957908]
[1641212834711,0.25233567,47384.0,47383.0,0.001]
[1641212835313,0.25233567,47384.0,47379.0,0.009794]
[1641212835712,0.4,47383.0,47379.0,0.009794]
[1641212836712,0.112,47383.0,47382.0,0.001]
[1641212837116,0.512,47383.0,47382.0,0.001]
[1641212837314,0.512,47383.0,47379.0,0.009794]
[1641212837514,0.4,47380.0,47379.0,0.009794]
[1641212837714,0.4,47380.0,47379.0,0.010794]
[1641212838116,0.81389812,47382.0,47379.0,0.84885744]
[1641212838315,0.81389812,47382.0,47379.0,0.84785744]
[1641212838518,0.81389812,47382.0,47381.0,0.001]
[1641212838816,1.32689812,47382.0,47381.0,0.001]
[1641212839516,1.32689812,47382.0,47381.0,0.60064935]
[1641212839721,0.92689812,47382.0,47381.0,0.60064935]
[1641212840118,0.81389812,47382.0,47381.0,0.60064935]
[1641212840320,0.81389812,47382.0,47381.0,0.8017526]
[1641212840520,0.81389812,47382.0,47381.0,0.8007526]
[1641212840716,0.92489812,47382.0,47381.0,0.8977526]
[1641212840917,0.92489812,47382.0,47381.0,0.8967526]
[1641212841118,0.111,47382.0,47381.0,1.13616669]
[1641212841318,0.111,47382.0,47381.0,1.13716669]
[1641212842020,0.111,47382.0,47381.0,1.13616669]
[1641212842221,0.95423379,47384.0,47381.0,1.04116669]
[1641212842419,0.95423379,47384.0,47383.0,0.002]
[1641212842820,1.06323379,47384.0,47383.0,0.002]
[1641212843019,0.24933567,47384.0,47383.0,0.002]
[1641212843423,1.16203988,47387.0,47383.0,0.02210167]
[1641212843621,0.4,47391.0,47386.0,0.18]
[1641212843820,0.4,47391.0,47390.0,0.001]
[1641212844019,0.4,47391.0,47390.0,0.24132967]
[1641212844219,3.23097575,47395.0,47390.0,0.24132967]
[1641212844419,0.4,47392.0,47390.0,0.24032967]
[1641212844619,0.4,47392.0,47391.0,0.001]
[1641212844822,0.4,47392.0,47391.0,0.181]
[1641212845221,0.4,47392.0,47391.0,0.001]
[1641212846723,0.4,47392.0,47391.0,0.125]
[1641212847124,0.4,47392.0,47391.0,0.124]
[1641212847325,0.58,47392.0,47391.0,0.124]
[1641212847924,0.58,47392.0,47390.0,0.14033567]
[1641212848124,0.66189,47392.0,47390.0,0.14033567]
[1641212848826,0.66189,47392.0,47390.0,0.24633567]
[1641212849928,0.10003445,47391.0,47390.0,0.24633567]
[1641212850126,0.10003445,47391.0,47390.0,0.14033567]
[1641212850725,0.10003445,47391.0,47390.0,0.25233567]
[1641212852128,0.10003445,47391.0,47390.0,0.14033567]
[1641212852929,0.10003445,47391.0,47390.0,0.25233567]
[1641212854132,0.10003445,47391.0,47390.0,0.14033567]
[1641212854734,1.09124346,47391.0,47390.0,0.26133567]
[1641212855335,0.10003445,47391.0,47390.0,0.26133567]
[1641212856251,0.10003445,47391.0,47390.0,0.14033567]
[1641212856851,0.10003445,47391.0,47390.0,0.26133567]
[1641212858252,0.10003445,47391.0,47390.0,0.14033567]
[1641212858852,0.10003445,47391.0,47390.0,0.24333567]
[1641212860156,0.10003445,47391.0,47390.0,0.14033567]
[1641212860755,0.10003445,47391.0,47390.0,0.24333567]
[1641212862156,0.10003445,47391.0,47390.0,0.14033567]
[1641212862856,0.10103445,47391.0,47390.0,0.24033567]
[1641212863055,0.10103445,47391.0,47390.0,0.1]
[1641212863460,0.10103445,47391.0,47384.0,0.59880212]
[1641212863658,0.4,47385.0,47384.0,0.59880212]
[1641212864458,0.4,47385.0,47383.0,0.02110167]
[1641212864658,0.58,47385.0,47383.0,0.02110167]
[1641212864858,0.80103445,47385.0,47383.0,0.02110167]
[1641212865460,0.62103445,47385.0,47383.0,0.02110167]
[1641212865959,0.91431727,47384.0,47383.0,0.02110167]
[1641212866760,1.03531727,47384.0,47383.0,0.02110167]
[1641212867161,0.22103445,47384.0,47383.0,0.02110167]
[1641212868260,0.10003445,47384.0,47383.0,0.02110167]
[1641212868861,0.22103445,47384.0,47383.0,0.02110167]
[1641212870269,0.10003445,47384.0,47383.0,0.02110167]
[1641212870963,0.22203445,47384.0,47383.0,0.02110167]
[1641212871167,0.29150445,47384.0,47383.0,0.02110167]
[1641212872467,1.45718928,47384.0,47383.0,0.02110167]
[1641212872769,1.33518928,47384.0,47383.0,0.02110167]
[1641212872965,1.45618928,47384.0,47383.0,0.02110167]
[1641212874165,1.33518928,47384.0,47383.0,0.02110167]
[1641212874766,1.33518928,47384.0,47383.0,0.11597167]
[1641212874969,1.45718928,47384.0,47383.0,0.11597167]
[1641212875166,0.29150445,47384.0,47383.0,0.11597167]
[1641212875369,0.22203445,47384.0,47383.0,0.11597167]
[1641212876169,0.10003445,47384.0,47383.0,0.11597167]
[1641212876967,0.23403445,47384.0,47383.0,0.11597167]
[1641212877167,1.39971928,47384.0,47383.0,0.11597167]
[1641212878370,1.26571928,47384.0,47383.0,0.11597167]
[1641212878973,1.39971928,47384.0,47383.0,0.11597167]
[1641212879170,0.23403445,47384.0,47383.0,0.11597167]
[1641212880769,0.10003445,47384.0,47383.0,0.11597167]
[1641212880972,0.23403445,47384.0,47383.0,0.11597167]
[1641212881674,0.23403445,47384.0,47383.0,0.80460402]
[1641212882170,0.10003445,47384.0,47383.0,0.2058019]
[1641212882371,0.10003445,47384.0,47383.0,1.04413288]
[1641212882972,0.22203445,47384.0,47383.0,1.16113288]
[1641212884172,0.10003445,47384.0,47383.0,1.04413288]
[1641212884874,0.22403445,47384.0,47383.0,1.16413288]
[1641212886174,0.10003445,47384.0,47383.0,1.04413288]
[1641212886874,0.22503445,47384.0,47383.0,1.16613288]
[1641212888174,0.22503445,47384.0,47383.0,1.04413288]
[1641212888380,0.10003445,47384.0,47383.0,0.44407116]
[1641212888575,0.10003445,47384.0,47383.0,1.54375325]
[1641212888975,0.10003445,47384.0,47383.0,1.77601755]
[1641212889377,0.10003445,47384.0,47383.0,0.57940187]
[1641212890781,1e-08,47387.0,47383.0,1.5410942]
[1641212890984,1.81067575,47394.0,47386.0,0.18]
[1641212891181,1.81067575,47394.0,47393.0,0.0210994]
[1641212891382,1.81067575,47394.0,47393.0,0.1132194]
[1641212891783,1.81067575,47397.0,47393.0,0.1132194]
[1641212892182,0.4,47394.0,47393.0,0.09212]
[1641212892583,0.4,47394.0,47393.0,0.23345567]
[1641212892982,0.48,47394.0,47393.0,0.36545567]
[1641212893683,0.08,47394.0,47393.0,0.36445567]
[1641212893882,0.08,47394.0,47393.0,0.36545567]
[1641212894087,1.81067575,47397.0,47393.0,0.36545567]
[1641212894288,1.41067575,47397.0,47393.0,0.42224967]
[1641212894486,1.41067575,47397.0,47393.0,0.44334801]
[1641212894683,1.41067575,47397.0,47396.0,0.001]
[1641212894883,0.02,47399.0,47396.0,0.001]
[1641212894884,1.43067575,47399.0,47396.0,0.001]
[1641212895084,1.43067575,47399.0,47398.0,0.001]
[1641212896385,0.02,47399.0,47398.0,0.001]
[1641212896587,0.02,47399.0,47398.0,0.03189015]
[1641212896785,0.02,47399.0,47398.0,0.21189015]
[1641212896987,1.41067575,47402.0,47398.0,0.34689015]
[1641212897187,1.41067575,47402.0,47398.0,0.326794]
[1641212897402,1.41067575,47402.0,47398.0,0.325794]
[1641212897604,1.41067575,47402.0,47401.0,0.02109482]
[1641212898202,1.41067575,47402.0,47401.0,0.20109482]
[1641212898402,1.41067575,47402.0,47401.0,0.02109482]
[1641212898607,1.41067575,47402.0,47401.0,0.34143049]
[1641212899005,1.41067575,47406.0,47401.0,0.47543049]
[1641212899206,0.4,47403.0,47402.0,0.18]
[1641212899408,1.41067575,47406.0,47402.0,0.181]
[1641212899606,1.41067575,47406.0,47405.0,0.001]
[1641212899807,0.4,47406.0,47405.0,0.06841]
[1641212900807,1.41067575,47409.0,47405.0,0.06841]
[1641212901008,1.41067575,47409.0,47408.0,0.001]
[1641212901411,1.30617575,47409.0,47408.0,1.296794]
[1641212901610,1.95653669,47416.0,47408.0,1.31688508]
[1641212901809,1.95653669,47416.0,47415.0,0.02108926]
[1641212902010,1.55653669,47417.0,47415.0,0.11469926]
[1641212902210,1.55653669,47417.0,47416.0,0.001]
[1641212902411,1.06719145,47423.0,47416.0,1.30708797]
[1641212902611,1.06719145,47423.0,47416.0,1.44842364]
[1641212902810,0.4,47417.0,47416.0,0.16142364]
[1641212903010,0.4,47417.0,47416.0,0.28642364]
[1641212903210,0.4,47417.0,47416.0,0.28742364]
[1641212903412,0.4,47417.0,47416.0,0.28642364]
[1641212903617,0.4,47417.0,47416.0,0.28742364]
[1641212903820,0.4,47417.0,47416.0,0.28642364]
[1641212904017,0.4,47417.0,47416.0,0.28742364]
[1641212904513,0.4,47424.0,47416.0,0.16242364]
[1641212904713,0.32033567,47430.0,47416.0,0.16142364]
[1641212904916,0.4,47421.0,47416.0,0.29542364]
[1641212905117,0.18,47425.0,47420.0,0.001]
[1641212905313,0.4,47421.0,47416.0,0.29542364]
[1641212905517,0.75206616,47428.0,47420.0,0.001]
[1641212905715,0.75206616,47428.0,47427.0,0.001]
[1641212906115,0.75206616,47428.0,47421.0,0.009794]
[1641212906418,0.75206616,47428.0,47427.0,0.0220846]
[1641212906616,0.75206616,47428.0,47427.0,0.0210846]
[1641212906824,0.4,47428.0,47427.0,0.0220846]
[1641212907015,0.4,47428.0,47427.0,0.1750846]
[1641212907516,0.4,47428.0,47427.0,0.1740846]
[1641212907916,0.48975693,47428.0,47427.0,0.1740846]
[1641212908816,0.48975693,47428.0,47427.0,0.0210846]
[1641212909019,0.48975693,47428.0,47427.0,0.1750846]
[1641212910318,0.48975693,47428.0,47427.0,0.0210846]
[1641212911019,0.66975693,47428.0,47427.0,0.1289154]
[1641212911219,0.66975693,47428.0,47420.0,0.02108871]
[1641212911418,0.58,47421.0,47418.0,0.59856705]
[1641212911620,0.18,47420.0,47418.0,0.59856705]
[1641212912318,0.26975693,47420.0,47417.0,0.0210901]
[1641212912719,0.4,47418.0,47417.0,0.0210901]
[1641212914222,0.4,47418.0,47417.0,0.0220901]
[1641212914422,0.48975693,47418.0,47417.0,0.0220901]
[1641212914820,0.48975693,47418.0,47417.0,0.0210901]
[1641212915021,0.64575693,47418.0,47417.0,0.0210901]
[1641212915421,0.64575693,47418.0,47417.0,0.0220901]
[1641212916426,0.48975693,47418.0,47417.0,0.0220901]
[1641212917024,0.64475693,47418.0,47417.0,0.0220901]
[1641212917224,2.05138193,47418.0,47417.0,0.0220901]
[1641212917425,2.05138193,47418.0,47417.0,0.0210901]
[1641212917924,0.64475693,47418.0,47417.0,0.0210901]
[1641212918325,0.48975693,47418.0,47417.0,0.0210901]
[1641212918827,0.08975693,47418.0,47417.0,0.02108723]
[1641212919027,0.64775693,47418.0,47417.0,0.02108723]
[1641212919329,0.64775693,47418.0,47417.0,0.02208723]
[1641212920131,0.24775693,47418.0,47417.0,0.02208723]
[1641212920443,0.08975693,47418.0,47417.0,0.02208723]
[1641212921032,0.24675693,47418.0,47417.0,0.02208723]
[1641212921648,0.157,47418.0,47417.0,0.02208723]
[1641212921836,0.22912,47418.0,47417.0,0.02208723]
[1641212922237,0.07212,47418.0,47417.0,0.02208723]
[1641212923036,0.31787693,47418.0,47417.0,0.02208723]
[1641212923434,0.31787693,47418.0,47417.0,0.02108723]
[1641212924439,0.16187693,47418.0,47417.0,0.02108723]
[1641212925136,0.49887693,47418.0,47417.0,0.02108723]
[1641212925739,1.90550193,47418.0,47417.0,0.02108723]
[1641212926337,1.74850193,47418.0,47417.0,0.02108723]
[1641212926538,1.7088376,47418.0,47413.0,0.59856705]
[1641212926739,0.58,47414.0,47413.0,0.59856705]
[1641212927338,0.58,47414.0,47412.0,0.59856705]
[1641212928340,0.08975693,47413.0,47411.0,0.02109266]
[1641212929039,0.24175693,47413.0,47411.0,0.02109266]
[1641212929639,0.08975693,47412.0,47411.0,0.02109266]
[1641212930843,1.25949597,47412.0,47411.0,0.02109266]
[1641212931054,1.41349597,47412.0,47411.0,0.02109266]
[1641212931443,1.32373904,47412.0,47411.0,0.02109266]
[1641212932342,0.08975693,47412.0,47411.0,0.02109266]
[1641212932743,0.26975693,47412.0,47411.0,0.02109266]
[1641212933042,0.24375693,47412.0,47411.0,0.02109266]
[1641212933244,0.154,47412.0,47411.0,0.02109266]
[1641212934347,1.25949597,47412.0,47411.0,0.02209266]
[1641212934944,1.16973904,47412.0,47411.0,0.02209266]
[1641212935144,1.30673904,47412.0,47411.0,0.02209266]
[1641212935344,0.137,47412.0,47411.0,0.02209266]
[1641212936146,0.48775681,47412.0,47411.0,1.03383755]
[1641212936352,0.35075681,47412.0,47411.0,1.03383755]
[1641212936948,0.75075681,47413.0,47411.0,1.03383755]
[1641212937147,0.75075681,47413.0,47412.0,0.001]
[1641212937646,0.75075681,47413.0,47411.0,1.03283755]
[1641212937647,0.75075681,47413.0,47411.0,0.61965971]
[1641212938565,0.35075681,47412.0,47411.0,0.61965971]
[1641212939563,0.35075681,47412.0,47411.0,0.62065971]
[1641212939764,0.35075681,47412.0,47411.0,1.03656406]
[1641212940769,0.35075681,47412.0,47411.0,1.03556406]
[1641212940966,0.35075681,47412.0,47411.0,0.62065971]
[1641212941167,0.53075681,47412.0,47411.0,0.02209266]
[1641212942369,0.35075681,47412.0,47411.0,1.03895413]
[1641212943071,0.53075681,47412.0,47411.0,1.03895413]
[1641212944172,0.53075681,47412.0,47411.0,0.61965971]
[1641212944372,0.53075681,47412.0,47411.0,0.02209266]
[1641212944773,0.53075681,47412.0,47411.0,0.99838813]
[1641212944972,0.35075681,47412.0,47411.0,0.99838813]
[1641212945174,0.51575681,47412.0,47411.0,0.99738813]
[1641212945374,0.51575681,47412.0,47411.0,0.99838813]
[1641212945674,0.165,47412.0,47411.0,0.99838813]
[1641212946475,0.35075681,47413.0,47411.0,0.99838813]
[1641212946675,0.35075681,47413.0,47412.0,0.001]
[1641212947075,0.53275681,47413.0,47412.0,0.001]
[1641212947489,0.53275681,47413.0,47412.0,0.55772842]
[1641212947679,0.53275681,47413.0,47412.0,1.15566055]
[1641212948077,0.53275681,47413.0,47412.0,0.97566055]
[1641212948277,0.53275681,47413.0,47412.0,1.15566055]
[1641212948477,0.81832479,47416.0,47412.0,0.55772842]
[1641212948678,0.90808578,47413.0,47412.0,0.55772842]
[1641212949077,1.46908578,47413.0,47412.0,0.37772842]
[1641212949478,1.46908578,47413.0,47412.0,0.37872842]
[1641212949677,1.37932479,47413.0,47412.0,0.37872842]
[1641212950078,0.97932479,47413.0,47412.0,0.55872842]
[1641212950581,0.81832479,47413.0,47412.0,0.001]
[1641212950779,0.81832479,47413.0,47412.0,0.181]
[1641212950980,0.46401,47414.0,47412.0,0.001]
[1641212951181,0.173,47413.0,47411.0,0.61884863]
[1641212951381,0.173,47413.0,47412.0,0.001]
[1641212951580,0.573,47413.0,47412.0,0.001]
[1641212951981,0.173,47413.0,47412.0,0.001]
[1641212952187,0.573,47413.0,47412.0,0.001]
[1641212952586,0.4,47413.0,47411.0,0.02109266]
[1641212952791,0.4,47413.0,47412.0,0.001]
[1641212952982,0.4,47413.0,47412.0,0.14133567]
[1641212953182,0.582,47413.0,47412.0,0.14133567]
[1641212953583,0.582,47413.0,47412.0,0.14033567]
[1641212953782,0.582,47413.0,47412.0,0.14133567]
[1641212954385,0.4,47413.0,47412.0,0.14133567]
[1641212955186,0.585,47413.0,47412.0,0.14133567]
[1641212955893,0.585,47413.0,47412.0,0.001]
[1641212956088,0.93593497,47413.0,47412.0,0.001]
[1641212957090,1.12193497,47413.0,47412.0,0.001]
[1641212957389,1.12193497,47413.0,47412.0,0.14133567]
[1641212957588,1.12193497,47413.0,47412.0,0.14033567]
[1641212958290,0.771,47413.0,47412.0,0.14033567]
[1641212958890,1.12151628,47413.0,47412.0,0.14033567]
[1641212959090,0.93651628,47413.0,47412.0,0.14033567]
[1641212959490,0.586,47413.0,47412.0,0.14133567]
[1641212960395,0.586,47413.0,47412.0,0.14033567]
[1641212960592,0.4,47413.0,47412.0,0.14133567]
[1641212960992,0.98489161,47413.0,47412.0,0.14133567]
[1641212961192,1.16689161,47413.0,47412.0,0.14133567]
[1641212961892,1.16689161,47413.0,47412.0,0.14033567]
[1641212962294,1.16689161,47413.0,47412.0,0.14133567]
[1641212962694,0.98489161,47413.0,47412.0,0.14133567]
[1641212963095,1.16689161,47413.0,47412.0,0.14133567]
[1641212963794,0.67177738,47413.0,47412.0,0.14033567]
[1641212963994,0.67177738,47413.0,47412.0,0.14133567]
[1641212964194,0.67177738,47413.0,47412.0,0.16242821]
[1641212964395,0.48977738,47413.0,47412.0,0.16242821]
[1641212964811,0.4,47413.0,47412.0,0.16242821]
[1641212964998,0.98447915,47413.0,47412.0,0.16142821]
[1641212965197,1.16747915,47413.0,47412.0,0.16142821]
[1641212965797,0.6727775,47413.0,47412.0,0.16142821]
[1641212966597,0.4897775,47413.0,47412.0,0.16142821]
[1641212966998,0.98438563,47413.0,47412.0,0.02109254]
[1641212967199,1.16538563,47413.0,47412.0,0.02109254]
[1641212967398,1.34638563,47413.0,47408.0,0.16142967]
[1641212967698,0.4,47409.0,47408.0,0.16142967]
[1641212967897,0.58,47409.0,47408.0,0.16142967]
[1641212968497,0.58,47409.0,47408.0,0.021094]
[1641212969097,0.764,47409.0,47408.0,0.021094]
[1641212969501,0.764,47409.0,47402.0,1.19551195]
[1641212969709,0.58,47403.0,47392.0,1.5707949]
[1641212970000,0.58,47398.0,47395.0,1.31539443]
[1641212970200,0.18,47396.0,47395.0,1.31539443]
[1641212970801,0.4,47398.0,47395.0,1.31539443]
[1641212971004,0.4,47398.0,47392.0,0.14033567]
[1641212971204,0.183,47396.0,47392.0,0.14033567]
[1641212971404,0.4,47393.0,47392.0,0.14033567]
[1641212971603,0.46188,47393.0,47392.0,0.14033567]
[1641212972004,0.46188,47393.0,47392.0,0.24568374]
[1641212972618,0.46188,47393.0,47392.0,0.14033567]
[1641212973220,0.64588,47393.0,47392.0,0.14033567]
[1641212974527,0.46188,47393.0,47392.0,0.14033567]
[1641212975128,0.64588,47393.0,47392.0,0.14033567]
[1641212976532,0.46188,47393.0,47392.0,0.14033567]
[1641212976930,0.64188,47393.0,47392.0,0.14033567]
[1641212977129,0.82588,47393.0,47392.0,0.14033567]
[1641212977330,0.64588,47393.0,47392.0,0.14033567]
[1641212977532,0.82588,47393.0,47392.0,0.14033567]
[1641212978633,0.46188,47393.0,47392.0,0.14033567]
[1641212979239,0.82888,47393.0,47392.0,0.14033567]
[1641212979444,0.767,47393.0,47392.0,0.14033567]
[1641212980534,0.4,47393.0,47392.0,0.14033567]
[1641212980733,0.58,47393.0,47392.0,0.14033567]
[1641212981132,0.586,47393.0,47392.0,0.14033567]
[1641212981333,0.766,47393.0,47392.0,0.14033567]
[1641212982636,0.766,47393.0,47389.0,0.02110234]
[1641212982637,0.84964,47393.0,47389.0,0.02110234]
[1641212982833,0.58,47390.0,47389.0,0.02110234]
[1641212984133,0.4,47390.0,47389.0,0.02110234]
[1641212984335,0.58,47390.0,47389.0,0.02110234]
[1641212985135,0.764,47390.0,47389.0,0.02110234]
[1641212986237,0.644,47390.0,47386.0,0.14033567]
[1641212986437,0.4,47387.0,47386.0,0.14033567]
[1641212986637,0.58,47387.0,47386.0,0.14033567]
[1641212987037,0.4,47387.0,47386.0,0.14033567]
[1641212987238,0.764,47387.0,47380.0,0.02110635]
[1641212987437,0.58,47381.0,47380.0,0.02110635]
[1641212987638,0.80999567,47381.0,47380.0,0.02110635]
[1641212987938,0.62999567,47381.0,47375.0,0.02110864]
[1641212988138,0.4,47376.0,47375.0,0.02110864]
[1641212989240,0.586,47376.0,47375.0,0.02110864]
[1641212989640,0.186,47376.0,47375.0,0.02110864]
[1641212990544,0.54033567,47381.0,47375.0,0.02110864]
[1641212991346,0.73133567,47381.0,47375.0,0.02110864]
[1641212991543,0.73133567,47381.0,47380.0,0.02110516]
[1641212991743,0.33133567,47381.0,47380.0,0.20110516]
[1641212992143,0.33133567,47381.0,47380.0,0.20210516]
[1641212992544,0.14033567,47381.0,47380.0,0.20210516]
[1641212992744,0.14033567,47381.0,47380.0,0.02210516]
[1641212992944,0.4,47387.0,47380.0,0.20110516]
[1641212993145,0.4,47387.0,47383.0,0.18]
[1641212993343,0.14033567,47388.0,47386.0,0.001]
[1641212993544,0.14033567,47388.0,47387.0,0.001]
[1641212994147,0.14033567,47388.0,47387.0,0.02210285]
[1641212994547,0.54033567,47388.0,47387.0,0.02210285]
[1641212994847,0.14033567,47388.0,47387.0,0.02210285]
[1641212995248,0.31333567,47388.0,47387.0,0.02210285]
[1641212995451,0.31333567,47388.0,47387.0,0.02110285]
[1641212995647,0.31333567,47388.0,47387.0,0.02210285]
[1641212995848,0.40315235,47388.0,47387.0,0.2163284]
[1641212996048,0.40315235,47388.0,47387.0,0.2153284]
[1641212996451,1.04983851,47388.0,47387.0,0.2153284]
[1641212997349,1.23883851,47388.0,47387.0,0.2887584]
[1641212997548,1.09850284,47388.0,47387.0,0.2887584]
[1641212997748,1.09850284,47388.0,47387.0,0.60909407]
[1641212997949,0.27881668,47388.0,47387.0,0.60809407]
[1641212998152,0.27881668,47388.0,47387.0,1.80664626]
[1641212998563,0.08981668,47388.0,47387.0,1.80664626]
[1641212998952,1.16669932,47389.0,47387.0,1.80664626]
[1641212999250,1.16669932,47389.0,47388.0,0.18]
[1641212999651,0.5860296,47389.0,47388.0,0.18]
[1641213000652,0.5860296,47390.0,47388.0,1.71253078]
[1641213001051,0.5860296,47390.0,47389.0,0.02109607]
[1641213001251,0.5860296,47390.0,47389.0,0.02209607]
[1641213001454,0.5860296,47390.0,47389.0,0.02109607]
[1641213001652,0.5860296,47390.0,47389.0,0.02209607]
[1641213002054,0.5860296,47390.0,47389.0,0.39632162]
[1641213002055,0.4,47390.0,47389.0,0.39632162]
[1641213002252,0.4,47390.0,47389.0,0.21632162]
[1641213002455,0.4,47390.0,47389.0,0.39632162]
[1641213002655,0.4,47390.0,47389.0,0.39532162]
[1641213002853,0.4,47390.0,47389.0,0.39632162]
[1641213003056,0.4,47390.0,47389.0,0.21632162]
[1641213003255,0.5860296,47393.0,47389.0,0.21632162]
[1641213003454,0.5860296,47392.0,47389.0,0.22729546]
[1641213003654,0.5860296,47392.0,47390.0,0.01197384]
[1641213003855,0.5860296,47392.0,47391.0,0.001]
[1641213004256,0.5860296,47392.0,47390.0,0.01197384]
[1641213004458,0.4,47391.0,47390.0,0.19422555]
[1641213004658,0.9860296,47391.0,47390.0,1.51137558]
[1641213005255,1.1700296,47391.0,47390.0,1.51137558]
[1641213005856,0.584,47391.0,47390.0,1.51137558]
[1641213006069,1.840505,47391.0,47390.0,0.19422555]
[1641213006577,2.020505,47391.0,47390.0,0.19422555]
[1641213006769,1.656505,47391.0,47390.0,0.19422555]
[1641213006971,1.836505,47391.0,47390.0,0.19422555]
[1641213007170,1.48968195,47391.0,47390.0,1.03217109]
[1641213007374,1.67568195,47391.0,47390.0,1.03217109]